fUST/lending_fUST_20241211
["ID","MTS","AMOUNT","RATE_DAILY","PERIOD"]
[344920264,1733879438705,-527.368092,0.000298,7]
[344920266,1733879438714,-150.0,0.000298,2]
[344920268,1733879438723,-599.52,0.000298,50]
[344920270,1733879438733,-160.0,0.00029831,5]
[344920272,1733879438742,-527.368092,0.00029861,7]
[344920274,1733879438752,-527.368092,0.00029861,7]
[344920276,1733879438762,-160.0,0.00029862,10]
[344920278,1733879438771,-150.01,0.00029862,2]
[344920280,1733879438781,-499.4221166,0.00029862,2]
[344920282,1733879438790,-500.0,0.00029862,2]
[344920284,1733879438799,-170.89127793,0.00029862,2]
[344920286,1733879438808,-500.0,0.00029862,2]
[344920288,1733879438817,-500.0,0.00029862,2]
[344920290,1733879438830,-500.0,0.00029862,2]
[344920292,1733879438839,-500.0,0.00029862,2]
[344920294,1733879438849,-500.0,0.00029862,2]
[344920296,1733879438858,-500.0,0.00029862,2]
[344920298,1733879438869,-500.0,0.00029862,2]
[344920299,1733879438879,-500.0,0.00029862,2]
[344920301,1733879438888,-500.0,0.00029862,2]
[344920303,1733879438898,-500.0,0.00029862,2]
[344920305,1733879438910,-500.0,0.00029862,2]
[344920308,1733879438923,-326.12952461,0.00029862,2]
[344920309,1733879438932,-500.0,0.00029862,7]
[344920312,1733879438942,-527.368092,0.00029863,7]
[344920314,1733879438952,-527.368092,0.00029863,7]
[344920316,1733879438963,-527.368092,0.00029863,7]
[344920318,1733879438973,-527.368092,0.00029863,7]
[344920320,1733879438982,-527.368092,0.00029863,7]
[344920322,1733879438992,-527.368102,0.00029863,7]
[344920324,1733879439001,-151.0,0.00029863,7]
[344920326,1733879439011,-151.0,0.00029863,7]
[344920328,1733879439020,-577.69520286,0.00029863,7]
[344920330,1733879439030,-500.0,0.00029863,7]
[344920331,1733879439038,-396.88566255,0.00029863,7]
[344920459,1733879440470,-103.11433745,0.00029863,7]
[344920462,1733879440481,-151.0,0.00029863,7]
[344920464,1733879440492,-151.0,0.00029863,7]
[344920466,1733879440504,-357.8579733,0.00029863,7]
[344920468,1733879440515,-151.0,0.00029863,7]
[344920471,1733879440526,-151.0,0.00029863,7]
[344920473,1733879440537,-151.0,0.00029863,7]
[344920475,1733879440549,-500.0,0.00029863,7]
[344920476,1733879440559,-500.0,0.00029863,7]
[344920478,1733879440571,-500.0,0.00029863,7]
[344920480,1733879440582,-500.0,0.00029863,7]
[344920482,1733879440593,-513.18262643,0.00029863,7]
[344920485,1733879440604,-500.0,0.00029863,7]
[344920487,1733879440615,-206.27,0.00029863,7]
[344920489,1733879440629,-500.0,0.00029863,7]
[344920491,1733879440641,-550.91044185,0.00029863,7]
[344920493,1733879440652,-500.0,0.00029863,7]
[344920495,1733879440664,-212.22884751,0.00029863,7]
[344920496,1733879440676,-500.0,0.00029863,7]
[344920497,1733879440688,-500.0,0.00029863,7]
[344920498,1733879440699,-503.26622657,0.00029863,7]
[344920499,1733879440718,-496.5923344,0.00029863,7]
[344920500,1733879440729,-500.0,0.00029863,7]
[344920501,1733879440739,-500.0,0.00029863,7]
[344920502,1733879440750,-500.0,0.00029863,7]
[344920503,1733879440761,-500.0,0.00029863,7]
[344920504,1733879440772,-500.0,0.00029863,7]
[344920505,1733879440782,-500.0,0.00029863,7]
[344920506,1733879440793,-500.0,0.00029863,7]
[344920507,1733879440805,-500.0,0.00029863,7]
[344920508,1733879440816,-641.72,0.00029863,7]
[344920509,1733879440832,-64.78622209,0.00029863,7]
[344920549,1733879529679,199.0,0.000262,60]
[344920552,1733880222533,166.296298,0.00013973,2]
[344920605,1733880636131,-744.680002,0.00021,5]
[344920606,1733880636144,-4977.84955832,0.00021,5]
[344920607,1733880636154,-664.73170508,0.00021561,2]
[344920608,1733880636164,-3453.18909489,0.00021779,2]
[344920609,1733880636173,-300.0,0.00021999,2]
[344920610,1733880636182,-300.0,0.00021999,2]
[344920611,1733880636191,-5190.98302727,0.00022,2]
[344920612,1733880636205,-353.3511656,0.000236,2]
[344920613,1733880636277,-49.35736056,0.000236,2]
[344920614,1733880636287,-420.0,0.00023906,2]
[344920615,1733880636296,-509.11755771,0.00024,2]
[344920617,1733880636305,-483.51569566,0.00024111,2]
[344920619,1733880636315,-420.0,0.00024199,2]
[344920621,1733880636324,-2254.85247111,0.000245,2]
[344920622,1733880636334,-484.75042099,0.00024951,2]
[344920625,1733880636346,-2454.24957901,0.00024951,2]
[344920627,1733880636355,-82029.50629569,0.0002499,2]
[344920629,1733880636365,-637.81248752,0.0002499,2]
[344920631,1733880636374,-34731.81480392,0.0002499,5]
[344920633,1733880636383,-174.38694962,0.00025631,2]
[344920635,1733880636392,-200.0000001,0.00025731,2]
[344920636,1733880636402,-227.44735068,0.0002576,2]
[344920637,1733880636549,-500.0,0.0002576,2]
[344920638,1733880636559,-500.0,0.0002576,2]
[344920639,1733880636568,-214.80284497,0.0002576,2]
[344920640,1733880636578,-500.0,0.0002576,2]
[344920641,1733880636587,-500.0,0.0002576,2]
[344920642,1733880636597,-500.0,0.0002576,2]
[344920643,1733880636606,-500.0,0.0002576,2]
[344920644,1733880636616,-500.0,0.0002576,2]
[344920645,1733880636625,-500.0,0.0002576,2]
[344920646,1733880636634,-500.0,0.0002576,2]
[344920647,1733880636643,-500.0,0.0002576,2]
[344920648,1733880636652,-500.0,0.0002576,2]
[344920649,1733880636661,-500.0,0.0002576,2]
[344920650,1733880636670,-389.03127569,0.0002576,2]
[344920651,1733880636680,-11368.6923797,0.00025761,2]
[344920652,1733880636689,-172.541479,0.00025924,2]
[344920653,1733880636699,-587.0,0.00025977,2]
[344920654,1733880636708,-1283.0233044,0.00026567,2]
[344920655,1733880636717,-587.0,0.00026619,2]
[344920656,1733880636727,-174.38694961,0.00027791,2]
[344920657,1733880636736,-38948.87831132,0.00028,2]
[344920658,1733880636749,-823.0,0.00028229,2]
[344920659,1733880636759,-156.55390074,0.00028329,2]
[344920660,1733880636769,-575.131,0.0002837,2]
[344920661,1733880636778,-302.75782099,0.00029,2]
[344920662,1733880636788,-302.75782099,0.00029,2]
[344920663,1733880636797,-151.0,0.000292,10]
[344920664,1733880636806,-823.0,0.00029281,2]
[344920665,1733880636816,-302.75782099,0.0002929,2]
[344920666,1733880636826,-302.75782099,0.0002929,2]
[344920667,1733880636835,-151.0,0.000294,16]
[344920668,1733880636845,-151.59062925,0.0002958,2]
[344920669,1733880636854,-302.75782099,0.0002958,2]
[344920670,1733880636864,-151.0,0.000296,18]
[344920671,1733880636873,-746.5659352,0.00029763,2]
[344920672,1733880636884,-294.70566672,0.00029763,2]
[344920673,1733880636893,-746.56593515,0.00029784,2]
[344920674,1733880636903,-150.0,0.000298,2]
[344920675,1733880636912,-599.52,0.000298,50]
[344920676,1733880636922,-179.86977,0.000298,2]
[344920677,1733880636931,-151.0,0.000298,20]
[344920678,1733880636940,-746.56593515,0.00029805,2]
[344920679,1733880636950,-746.56593515,0.00029825,2]
[344920680,1733880636959,-160.0,0.00029831,3]
[344920681,1733880636969,-160.0,0.00029831,5]
[344920682,1733880636978,-746.56593515,0.00029846,2]
[344920683,1733880636990,-2000.0,0.0002986,7]
[344920684,1733880637000,-160.0,0.00029862,10]
[344920685,1733880637009,-150.01,0.00029862,2]
[344920686,1733880637019,-500.0,0.00029862,7]
[344920687,1733880637028,-449.991,0.00029863,7]
[344920688,1733880637038,-297.34375544,0.00029863,7]
[344920692,1733880638868,-152.64724456,0.00029863,7]
[344920694,1733880638878,-449.991,0.00029863,7]
[344920696,1733880638887,-151.0,0.00029863,7]
[344920698,1733880638897,-151.0,0.00029863,7]
[344920699,1733880638907,-151.0,0.00029863,7]
[344920702,1733880638916,-527.368092,0.00029863,7]
[344920704,1733880638926,-527.368092,0.00029863,7]
[344920705,1733880638936,-527.368092,0.00029863,7]
[344920706,1733880638946,-527.368092,0.00029863,7]
[344920707,1733880638956,-527.368092,0.00029863,7]
[344920708,1733880638966,-527.368092,0.00029863,7]
[344920709,1733880638977,-527.368092,0.00029863,7]
[344920710,1733880638987,-527.368092,0.00029863,7]
[344920711,1733880639009,-577.69520286,0.00029863,7]
[344920712,1733880639020,-500.0,0.00029863,7]
[344920714,1733880639030,-500.0,0.00029863,7]
[344920715,1733880639044,-396.88566255,0.00029863,7]
[344920716,1733880639054,-151.0,0.00029863,7]
[344920717,1733880639064,-151.0,0.00029863,7]
[344920718,1733880639073,-233.21650703,0.00029863,7]
[344920719,1733880639086,-266.78349297,0.00029863,7]
[344920720,1733880639096,-500.0,0.00029863,7]
[344920721,1733880639106,-500.0,0.00029863,7]
[344920722,1733880639116,-500.0,0.00029863,7]
[344920723,1733880639126,-151.0,0.00029863,7]
[344920724,1733880639136,-151.0,0.00029863,7]
[344920725,1733880639145,-519.59679345,0.00029863,7]
[344920726,1733880639155,-151.0,0.00029863,7]
[344920727,1733880639165,-151.0,0.00029863,7]
[344920728,1733880639175,-151.0,0.00029863,7]
[344920729,1733880639184,-151.0,0.00029863,7]
[344920730,1733880639198,-500.0,0.00029863,7]
[344920731,1733880639207,-500.0,0.00029863,7]
[344920732,1733880639217,-500.0,0.00029863,7]
[344920733,1733880639226,-500.0,0.00029863,7]
[344920734,1733880639237,-200.0,0.00029863,7]
[344920735,1733880639248,-500.0,0.00029863,7]
[344920736,1733880639258,-500.0,0.00029863,7]
[344920737,1733880639269,-500.0,0.00029863,7]
[344920738,1733880639279,-500.0,0.00029863,7]
[344920739,1733880639288,-151.0,0.00029863,7]
[344920740,1733880639298,-151.0,0.00029863,7]
[344920741,1733880639307,-151.0,0.00029863,7]
[344920742,1733880639317,-151.0,0.00029863,7]
[344920743,1733880639327,-151.0,0.00029863,7]
[344920744,1733880639337,-208.011355,0.00029863,7]
[344920745,1733880639346,-500.0,0.00029863,7]
[344920746,1733880639356,-500.0,0.00029863,7]
[344920747,1733880639366,-353.12419017,0.00029863,7]
[344920748,1733880639376,-500.0,0.00029863,7]
[344920749,1733880639386,-500.0,0.00029863,7]
[344920750,1733880639395,-500.0,0.00029863,7]
[344920751,1733880639406,-500.0,0.00029863,7]
[344920752,1733880639415,-500.0,0.00029863,7]
[344920753,1733880639424,-500.0,0.00029863,7]
[344920754,1733880639434,-168.84709023,0.00029863,7]
[344920755,1733880639448,-331.15290977,0.00029863,7]
[344920756,1733880639457,-353.1397784,0.00029863,7]
[344920757,1733880639470,-146.8602216,0.00029863,7]
[344920758,1733880639479,-500.0,0.00029863,7]
[344920759,1733880639497,-500.0,0.00029863,7]
[344920760,1733880639506,-500.0,0.00029863,7]
[344920761,1733880639516,-500.0,0.00029863,7]
[344920762,1733880639531,-500.0,0.00029863,7]
[344920763,1733880639541,-500.0,0.00029863,7]
[344920764,1733880639551,-500.0,0.00029863,7]
[344920765,1733880639563,-500.0,0.00029863,7]
[344920766,1733880639572,-500.0,0.00029863,7]
[344920767,1733880639584,-500.0,0.00029863,7]
[344920768,1733880639593,-500.0,0.00029863,7]
[344920769,1733880639602,-500.0,0.00029863,7]
[344920770,1733880639612,-500.0,0.00029863,7]
[344920771,1733880639622,-500.0,0.00029863,7]
[344920772,1733880639632,-500.0,0.00029863,7]
[344920773,1733880639641,-500.0,0.00029863,7]
[344920774,1733880639650,-500.0,0.00029863,7]
[344920775,1733880639659,-501.19499139,0.00029863,7]
[344920776,1733880639669,-500.0,0.00029863,7]
[344920777,1733880639678,-507.82003225,0.00029863,7]
[344920778,1733880639688,-488.71217806,0.00029863,7]
[344920779,1733880639697,-151.0,0.00029863,7]
[344920780,1733880639706,-151.0,0.00029863,7]
[344920781,1733880639716,-151.0,0.00029863,7]
[344920782,1733880639726,-151.0,0.00029863,7]
[344920783,1733880639735,-151.0,0.00029863,7]
[344920784,1733880639744,-151.0,0.00029863,7]
[344920785,1733880639755,-500.0,0.00029863,7]
[344920786,1733880639768,-491.58894957,0.00029863,7]
[344920787,1733880639778,-500.0,0.00029863,7]
[344920788,1733880639787,-500.0,0.00029863,7]
[344920789,1733880639797,-500.0,0.00029863,7]
[344920790,1733880639807,-500.0,0.00029863,7]
[344920791,1733880639816,-500.0,0.00029863,7]
[344920792,1733880639826,-500.0,0.00029863,7]
[344920793,1733880639835,-500.0,0.00029863,7]
[344920794,1733880639845,-500.0,0.00029863,7]
[344920795,1733880639854,-506.84398934,0.00029863,7]
[344920796,1733880639864,-231.33526176,0.00029863,7]
[344920797,1733880639873,-296.49452842,0.00029863,7]
[344920798,1733880639882,-500.0,0.00029863,7]
[344920799,1733880639892,-500.0,0.00029863,7]
[344920800,1733880639901,-500.0,0.00029863,7]
[344920801,1733880639910,-500.0,0.00029863,7]
[344920802,1733880639919,-500.0,0.00029863,7]
[344920803,1733880639928,-500.0,0.00029863,7]
[344920804,1733880639937,-500.0,0.00029863,7]
[344920805,1733880639947,-409.64329648,0.00029863,7]
[344920806,1733880639957,-157.77214202,0.00029863,7]
[344920807,1733880639968,-403.8841302,0.00029863,7]
[344920808,1733880639977,-500.0,0.00029863,7]
[344920809,1733880639987,-151.0,0.00029863,7]
[344920810,1733880640006,-500.0,0.00029863,7]
[344920811,1733880640016,-169.502079,0.00029863,7]
[344920812,1733880640029,-500.0,0.00029863,7]
[344920813,1733880640039,-1332.82,0.00029863,7]
[344920814,1733880640049,-500.0,0.00029863,7]
[344920815,1733880640059,-1332.82,0.00029863,7]
[344920816,1733880640070,-1332.82,0.00029863,7]
[344920817,1733880640079,-1332.82,0.00029863,7]
[344920818,1733880640089,-1332.82,0.00029863,7]
[344920819,1733880640099,-1332.82,0.00029863,7]
[344920820,1733880640108,-1332.82,0.00029863,7]
[344920821,1733880640118,-1332.82,0.00029863,7]
[344920822,1733880640128,-1332.82,0.00029863,7]
[344920823,1733880640137,-1332.82,0.00029863,7]
[344920824,1733880640147,-1332.82,0.00029863,7]
[344920825,1733880640157,-1332.82,0.00029863,7]
[344920826,1733880640166,-1332.82,0.00029863,7]
[344920827,1733880640176,-376.95058209,0.00029863,7]
[344920828,1733880640186,-500.0,0.00029863,7]
[344920829,1733880640198,-1332.82,0.00029863,7]
[344920830,1733880640209,-313.85722547,0.00029863,7]
[344920831,1733880640218,-1332.82,0.00029863,7]
[344920832,1733880640227,-1332.82,0.00029863,7]
[344920833,1733880640238,-1332.82,0.00029863,7]
[344920834,1733880640252,-1332.82,0.00029863,7]
[344920835,1733880640269,-1332.82,0.00029863,7]
[344920836,1733880640279,-1332.82,0.00029863,7]
[344920837,1733880640288,-1332.82,0.00029863,7]
[344920838,1733880640297,-1332.82,0.00029863,7]
[344920839,1733880640306,-1332.82,0.00029863,7]
[344920840,1733880640316,-1332.88,0.00029863,7]
[344920841,1733880640326,-439.16028163,0.00029863,7]
[344920842,1733880640335,-500.0,0.00029863,7]
[344920843,1733880640347,-500.0,0.00029863,7]
[344920844,1733880640357,-500.0,0.00029863,7]
[344920845,1733880640367,-500.0,0.00029863,7]
[344920846,1733880640377,-498.15508231,0.00029863,7]
[344920847,1733880640386,-500.0,0.00029863,7]
[344920848,1733880640398,-502.25082679,0.00029863,7]
[344920849,1733880640407,-500.0,0.00029863,7]
[344920850,1733880640417,-291.32619365,0.00029863,7]
[344920851,1733880640426,-500.0,0.00029863,7]
[344920852,1733880640435,-500.0,0.00029863,7]
[344920853,1733880640444,-420.94850272,0.00029863,7]
[344920854,1733880640454,-500.0,0.00029863,7]
[344920855,1733880640463,-500.0,0.00029863,7]
[344920856,1733880640472,-500.0,0.00029863,7]
[344920857,1733880640481,-500.0,0.00029863,7]
[344920858,1733880640493,-500.0,0.00029863,7]
[344920859,1733880640502,-500.0,0.00029863,7]
[344920860,1733880640511,-314.62692531,0.00029863,7]
[344920861,1733880640521,-500.0,0.00029863,7]
[344920862,1733880640530,-500.0,0.00029863,7]
[344920865,1733880640540,-500.0,0.00029863,7]
[344920867,1733880640550,-500.0,0.00029863,7]
[344920869,1733880640560,-500.0,0.00029863,7]
[344920871,1733880640570,-500.0,0.00029863,7]
[344920874,1733880640580,-500.0,0.00029863,7]
[344920876,1733880640589,-500.0,0.00029863,7]
[344920878,1733880640598,-500.0,0.00029863,7]
[344920880,1733880640607,-500.0,0.00029863,7]
[344920882,1733880640617,-500.0,0.00029863,7]
[344920884,1733880640626,-500.0,0.00029863,7]
[344920886,1733880640639,-500.0,0.00029863,7]
[344920888,1733880640654,-500.0,0.00029863,7]
[344920890,1733880640663,-426.56,0.00029863,7]
[344920892,1733880640673,-500.0,0.00029863,7]
[344920894,1733880640682,-561.12336514,0.00029863,7]
[344920896,1733880640691,-199.24071099,0.00029863,7]
[344920898,1733880640701,-500.0,0.00029863,7]
[344920900,1733880640710,-500.0,0.00029863,7]
[344920901,1733880640719,-500.0,0.00029863,7]
[344920902,1733880640729,-500.0,0.00029863,7]
[344920903,1733880640738,-500.0,0.00029863,7]
[344920904,1733880640752,-500.0,0.00029863,7]
[344920905,1733880640761,-500.0,0.00029863,7]
[344920906,1733880640771,-500.0,0.00029863,7]
[344920907,1733880640780,-527.17360717,0.00029863,7]
[344920908,1733880640789,-500.0,0.00029863,7]
[344920909,1733880640799,-500.0,0.00029863,7]
[344920910,1733880640810,-500.0,0.00029863,7]
[344920911,1733880640819,-501.53772456,0.00029863,7]
[344920912,1733880640829,-383.45396456,0.00029863,7]
[344920913,1733880640838,-500.0,0.00029863,7]
[344920914,1733880640847,-500.0,0.00029863,7]
[344920915,1733880640856,-294.19797193,0.00029863,7]
[344920916,1733880640866,-500.0,0.00029863,7]
[344920917,1733880640876,-500.0,0.00029863,7]
[344920918,1733880640885,-500.0,0.00029863,7]
[344920919,1733880640894,-500.0,0.00029863,7]
[344920920,1733880640903,-270.19553011,0.00029863,7]
[344920921,1733880640913,-324.18233742,0.00029863,7]
[344920922,1733880640922,-500.0,0.00029863,7]
[344920923,1733880640931,-348.28687012,0.00029863,7]
[344920924,1733880640940,-500.0,0.00029863,7]
[344920926,1733880640950,-433.10849862,0.00029863,7]
[344920928,1733880640959,-500.0,0.00029863,7]
[344920930,1733880640969,-500.0,0.00029863,7]
[344920932,1733880640978,-500.0,0.00029863,7]
[344920934,1733880640988,-348.75639886,0.00029863,7]
[344920936,1733880641001,-500.0,0.00029863,7]
[344920938,1733880641010,-500.0,0.00029863,7]
[344920939,1733880641019,-500.0,0.00029863,7]
[344920940,1733880641028,-500.0,0.00029863,7]
[344920941,1733880641038,-513.59812339,0.00029863,7]
[344920942,1733880641047,-340.2104036,0.00029863,7]
[344920943,1733880641057,-500.0,0.00029863,7]
[344920944,1733880641067,-500.0,0.00029863,7]
[344920945,1733880641076,-500.0,0.00029863,7]
[344920946,1733880641086,-500.0,0.00029863,7]
[344920947,1733880641095,-500.0,0.00029863,7]
[344920948,1733880641105,-500.0,0.00029863,7]
[344920949,1733880641114,-500.0,0.00029863,7]
[344920950,1733880641123,-500.0,0.00029863,7]
[344920951,1733880641133,-500.0,0.00029863,7]
[344920952,1733880641142,-500.0,0.00029863,7]
[344920953,1733880641151,-500.0,0.00029863,7]
[344920954,1733880641160,-500.0,0.00029863,7]
[344920955,1733880641170,-500.0,0.00029863,7]
[344920956,1733880641179,-500.0,0.00029863,7]
[344920957,1733880641189,-649.71880171,0.00029863,7]
[344920958,1733880641199,-500.0,0.00029863,7]
[344920959,1733880641212,-500.0,0.00029863,7]
[344920960,1733880641221,-502.65588424,0.00029863,7]
[344920961,1733880641230,-491.60879851,0.00029863,7]
[344920962,1733880641243,-500.0,0.00029863,7]
[344920963,1733880641253,-500.0,0.00029863,7]
[344920964,1733880641261,-500.0,0.00029863,7]
[344920965,1733880641271,-500.0,0.00029863,7]
[344920966,1733880641282,-377.64,0.00029863,7]
[344920967,1733880641292,-556.32019932,0.00029863,7]
[344920968,1733880641302,-159.081918,0.00029863,7]
[344920969,1733880641312,-159.081918,0.00029863,7]
[344920970,1733880641321,-500.0,0.00029863,7]
[344920971,1733880641330,-159.081918,0.00029863,7]
[344920972,1733880641340,-443.93163345,0.00029863,7]
[344920973,1733880641349,-159.081918,0.00029863,7]
[344920974,1733880641358,-515.2232936,0.00029863,7]
[344920975,1733880641368,-159.081918,0.00029863,7]
[344920976,1733880641378,-545.7642009,0.00029863,7]
[344920977,1733880641387,-500.0,0.00029863,7]
[344920978,1733880641396,-500.0,0.00029863,7]
[344920979,1733880641406,-159.081918,0.00029863,7]
[344920980,1733880641416,-159.081918,0.00029863,7]
[344920981,1733880641426,-500.0,0.00029863,7]
[344920982,1733880641435,-159.081918,0.00029863,7]
[344920983,1733880641445,-159.081918,0.00029863,7]
[344920984,1733880641457,-500.0,0.00029863,7]
[344920985,1733880641467,-159.081918,0.00029863,7]
[344920986,1733880641476,-500.0,0.00029863,7]
[344920987,1733880641587,-500.0,0.00029863,7]
[344920988,1733880641597,-209.42518942,0.00029863,7]
[344920989,1733880641607,-412.47980385,0.00029863,7]
[344920990,1733880641617,-500.0,0.00029863,7]
[344920991,1733880641626,-500.0,0.00029863,7]
[344920992,1733880641635,-500.0,0.00029863,7]
[344920993,1733880641645,-500.0,0.00029863,7]
[344920994,1733880641654,-500.0,0.00029863,7]
[344920995,1733880641664,-500.0,0.00029863,7]
[344920996,1733880641673,-500.0,0.00029863,7]
[344920997,1733880641683,-500.0,0.00029863,7]
[344920998,1733880641693,-500.0,0.00029863,7]
[344920999,1733880641702,-500.0,0.00029863,7]
[344921000,1733880641715,-500.0,0.00029863,7]
[344921001,1733880641724,-500.0,0.00029863,7]
[344921002,1733880641733,-333.39,0.00029863,7]
[344921003,1733880641747,-500.0,0.00029863,7]
[344921004,1733880641757,-500.0,0.00029863,7]
[344921005,1733880641766,-500.0,0.00029863,7]
[344921006,1733880641775,-500.0,0.00029863,7]
[344921007,1733880641785,-500.0,0.00029863,7]
[344921008,1733880641794,-500.0,0.00029863,7]
[344921009,1733880641803,-500.0,0.00029863,7]
[344921010,1733880641813,-500.0,0.00029863,7]
[344921011,1733880641823,-500.0,0.00029863,7]
[344921012,1733880641833,-500.0,0.00029863,7]
[344921013,1733880641842,-500.0,0.00029863,7]
[344921014,1733880641852,-500.0,0.00029863,7]
[344921015,1733880641861,-500.0,0.00029863,7]
[344921016,1733880641871,-500.0,0.00029863,7]
[344921017,1733880641881,-500.0,0.00029863,7]
[344921018,1733880641890,-500.0,0.00029863,7]
[344921019,1733880641900,-353.81307631,0.00029863,7]
[344921020,1733880641909,-1004.93108263,0.00029863,5]
[344921021,1733880641918,-500.0,0.00029863,7]
[344921022,1733880641927,-500.0,0.00029863,7]
[344921023,1733880641937,-500.0,0.00029863,7]
[344921024,1733880641946,-500.0,0.00029863,7]
[344921025,1733880641955,-500.0,0.00029863,7]
[344921026,1733880641965,-500.0,0.00029863,7]
[344921027,1733880641975,-500.0,0.00029863,7]
[344921028,1733880641985,-500.0,0.00029863,7]
[344921029,1733880641998,-500.0,0.00029863,7]
[344921030,1733880642008,-500.0,0.00029863,7]
[344921031,1733880642018,-500.0,0.00029863,7]
[344921032,1733880642027,-500.0,0.00029863,7]
[344921033,1733880642036,-208.55,0.00029863,7]
[344921034,1733880642046,-500.0,0.00029863,7]
[344921035,1733880642056,-500.0,0.00029863,7]
[344921036,1733880642066,-168.0,0.00029863,7]
[344921037,1733880642075,-500.0,0.00029863,7]
[344921038,1733880642085,-500.0,0.00029863,7]
[344921039,1733880642094,-500.0,0.00029863,7]
[344921040,1733880642103,-500.0,0.00029863,7]
[344921041,1733880642113,-500.0,0.00029863,7]
[344921042,1733880642122,-500.0,0.00029863,7]
[344921043,1733880642132,-500.0,0.00029863,7]
[344921044,1733880642141,-500.0,0.00029863,7]
[344921045,1733880642151,-527.68,0.00029863,7]
[344921046,1733880642161,-503.69601694,0.00029863,7]
[344921047,1733880642171,-500.0,0.00029863,7]
[344921048,1733880642180,-588.71423348,0.00029863,7]
[344921049,1733880642189,-500.0,0.00029863,7]
[344921050,1733880642201,-500.0,0.00029863,7]
[344921051,1733880642211,-500.0,0.00029863,7]
[344921052,1733880642220,-500.0,0.00029863,7]
[344921053,1733880642230,-500.0,0.00029863,7]
[344921054,1733880642239,-387.08957292,0.00029863,7]
[344921055,1733880642255,-500.0,0.00029863,7]
[344921056,1733880642268,-500.0,0.00029863,7]
[344921057,1733880642280,-500.0,0.00029863,7]
[344921058,1733880642290,-500.0,0.00029863,7]
[344921059,1733880642299,-500.0,0.00029863,7]
[344921060,1733880642308,-500.0,0.00029863,7]
[344921061,1733880642317,-151.15346465,0.00029863,7]
[344921062,1733880642327,-501.08525477,0.00029863,7]
[344921063,1733880642336,-150.15,0.00029863,7]
[344921064,1733880642346,-500.0,0.00029863,7]
[344921065,1733880642355,-152.69360415,0.00029863,7]
[344921066,1733880642365,-500.0,0.00029863,7]
[344921067,1733880642374,-500.0,0.00029863,7]
[344921068,1733880642383,-517.25844105,0.00029863,7]
[344921069,1733880642392,-151.0,0.00029863,7]
[344921070,1733880642402,-151.0,0.00029863,7]
[344921071,1733880642411,-151.0,0.00029863,7]
[344921072,1733880642420,-151.0,0.00029863,7]
[344921073,1733880642430,-151.0,0.00029863,7]
[344921074,1733880642439,-151.0,0.00029863,7]
[344921075,1733880642449,-151.0,0.00029863,7]
[344921076,1733880642458,-500.0,0.00029863,7]
[344921077,1733880642467,-151.0,0.00029863,7]
[344921078,1733880642476,-151.0,0.00029863,7]
[344921079,1733880642485,-151.0,0.00029863,7]
[344921080,1733880642497,-271.803114,0.00029863,7]
[344921081,1733880642507,-500.0,0.00029863,7]
[344921082,1733880642516,-500.0,0.00029863,7]